[Event "Late-Titled-Tuesday-Blitz-January-30-2024"]
[Site "Chess.com"]
[Date "2024.01.30"]
[Round "1"]
[White "Eloist"]
[Black "Agibileg"]
[Result "1-0"]
[WhiteElo "2447"]
[BlackElo "2732"]
[TimeControl "180+1"]
[EndTime "14:08:28 PST"]
[Termination "Eloist won by resignation"]

1. e4 {[%clk 0:02:59.7]} 1... e5 {[%clk 0:02:59.8]} 2. Bc4 {[%clk 0:02:59.1]}
2... Nc6 {[%clk 0:02:54.8]} 3. Nf3 {[%clk 0:02:58.5]} 3... Nf6 {[%clk
0:02:54.1]} 4. d3 {[%clk 0:02:58.6]} 4... h6 {[%clk 0:02:52.9]} 5. O-O {[%clk
0:02:58.6]} 5... d6 {[%clk 0:02:52.4]} 6. a4 {[%clk 0:02:54.8]} 6... g5 {[%clk
0:02:51.7]} 7. Nbd2 {[%clk 0:02:44.9]} 7... Bg7 {[%clk 0:02:50.1]} 8. a5 {[%clk
0:02:38.6]} 8... a6 {[%clk 0:02:49.4]} 9. Bb3 {[%clk 0:02:34.9]} 9... g4 {[%clk
0:02:44.4]} 10. Ne1 {[%clk 0:02:25.4]} 10... h5 {[%clk 0:02:43.9]} 11. Nc4
{[%clk 0:02:22.6]} 11... Be6 {[%clk 0:02:40.9]} 12. f4 {[%clk 0:02:19]} 12...
exf4 {[%clk 0:02:38.2]} 13. Bxf4 {[%clk 0:02:16.9]} 13... h4 {[%clk 0:02:30.1]}
14. Bg5 {[%clk 0:02:15.3]} 14... Rh5 {[%clk 0:02:29.8]} 15. Qd2 {[%clk
0:02:10.3]} 15... Qe7 {[%clk 0:01:58.7]} 16. Qf4 {[%clk 0:02:08.2]} 16... Nd4
{[%clk 0:01:57.1]} 17. Bxf6 {[%clk 0:01:32.6]} 17... Ne2+ {[%clk 0:01:02.6]} 18.
Kh1 {[%clk 0:01:32.4]} 18... Ng3+ {[%clk 0:01:01.8]} 19. hxg3 {[%clk 0:01:12.6]}
19... Bxf6 {[%clk 0:00:57.7]} 20. Qxf6 {[%clk 0:01:08.1]} 20... Qxf6 {[%clk
0:00:57.3]} 21. Rxf6 {[%clk 0:01:07.2]} 21... Ke7 {[%clk 0:00:57]} 22. Rxe6+
{[%clk 0:00:42.8]} 22... fxe6 {[%clk 0:00:57.9]} 23. Kh2 {[%clk 0:00:21.6]}
23... Rf8 {[%clk 0:00:32.2]} 24. gxh4 {[%clk 0:00:17]} 24... Rxh4+ {[%clk
0:00:24.5]} 25. Kg3 {[%clk 0:00:17.1]} 25... Rh1 {[%clk 0:00:24.7]} 26. Ne3
{[%clk 0:00:13.9]} 26... c5 {[%clk 0:00:19.2]} 27. c3 {[%clk 0:00:13.9]} 27...
Kf6 {[%clk 0:00:10.9]} 28. N1c2 {[%clk 0:00:13.8]} 28... Rxa1 {[%clk 0:00:11.8]}
29. Nxa1 {[%clk 0:00:14.7]} 29... Kg5 {[%clk 0:00:10.8]} 30. Nac2 {[%clk
0:00:14.7]} 30... Kf6 {[%clk 0:00:08.1]} 31. d4 {[%clk 0:00:14.8]} 31... cxd4
{[%clk 0:00:07.4]} 32. Nxd4 {[%clk 0:00:15]} 32... Ke5 {[%clk 0:00:07.2]} 33.
Nxe6 {[%clk 0:00:14.1]} 33... Rh8 {[%clk 0:00:06.2]} 34. Nxg4+ {[%clk
0:00:13.7]} 34... Kxe4 {[%clk 0:00:06.4]} 35. Ng5+ {[%clk 0:00:13.5]} 35... Kd3
{[%clk 0:00:06]} 36. Nf7 {[%clk 0:00:12.8]} 36... Rh1 {[%clk 0:00:04.8]} 37.
Nxd6 {[%clk 0:00:12.2]} 37... Rb1 {[%clk 0:00:04.9]} 38. Bc4+ {[%clk 0:00:11.4]}
38... Kd2 {[%clk 0:00:03.2]} 39. b3 {[%clk 0:00:10.5]} 39... Kxc3 {[%clk
0:00:03.1]} 40. Ne5 {[%clk 0:00:10.3]} 40... Kb4 {[%clk 0:00:03.1]} 41. Nxb7
{[%clk 0:00:10.2]} 41... Re1 {[%clk 0:00:02.6]} 42. Nc6+ {[%clk 0:00:10.4]}
42... Kc3 {[%clk 0:00:02.3]} 43. Kf2 {[%clk 0:00:09.9]} 43... Ra1 {[%clk
0:00:01.5]} 44. g4 {[%clk 0:00:09.4]} 44... Ra2+ {[%clk 0:00:00.9]} 45. Ke3
{[%clk 0:00:09.6]} 45... Ra1 {[%clk 0:00:01.6]} 46. g5 {[%clk 0:00:09.7]} 46...
Rg1 {[%clk 0:00:02.2]} 47. Kf4 {[%clk 0:00:09.9]} 47... Rf1+ {[%clk 0:00:02]}
48. Ke5 {[%clk 0:00:10]} 48... Re1+ {[%clk 0:00:01.6]} 49. Kf6 {[%clk 0:00:10]}
49... Re8 {[%clk 0:00:01.9]} 50. g6 {[%clk 0:00:10]} 50... Rc8 {[%clk
0:00:02.4]} 51. Ne7 {[%clk 0:00:08.2]} 51... Rb8 {[%clk 0:00:02.8]} 52. Nc5
{[%clk 0:00:07.9]} 52... Rc8 {[%clk 0:00:02.7]} 53. g7 {[%clk 0:00:07.8]} 53...
Kb4 {[%clk 0:00:02.5]} 54. g8=Q {[%clk 0:00:07.8]} 54... Rxg8 {[%clk 0:00:02.4]}
55. Nxg8 {[%clk 0:00:08.3]} 55... Kxc5 {[%clk 0:00:03.3]} 56. Ke5 {[%clk
0:00:08.3]} 56... Kb4 {[%clk 0:00:04.2]} 57. Bxa6 {[%clk 0:00:06.8]} 57... Kxa5
{[%clk 0:00:04.7]} 58. Bc4 {[%clk 0:00:06.9]} 58... Kb4 {[%clk 0:00:05.4]} 59.
Kd4 {[%clk 0:00:07.4]} 1-0

[Event "Late-Titled-Tuesday-Blitz-January-30-2024"]
[Site "Chess.com"]
[Date "2024.01.30"]
[Round "1"]
[White "sakkikuska"]
[Black "maurovargas01"]
[Result "1-0"]
[WhiteElo "2544"]
[BlackElo "1856"]
[TimeControl "180+1"]
[EndTime "14:08:29 PST"]
[Termination "sakkikuska won on time"]

1. e4 {[%clk 0:03:00.4]} 1... d5 {[%clk 0:02:59.9]} 2. exd5 {[%clk 0:03:00.8]}
2... Qxd5 {[%clk 0:03:00.3]} 3. Nc3 {[%clk 0:03:00.9]} 3... Qa5 {[%clk
0:03:00.3]} 4. d4 {[%clk 0:02:58.5]} 4... c6 {[%clk 0:03:00.6]} 5. Bd2 {[%clk
0:02:57.7]} 5... Qc7 {[%clk 0:03:00.8]} 6. Bc4 {[%clk 0:02:56.1]} 6... Nf6
{[%clk 0:03:01.1]} 7. Nf3 {[%clk 0:02:56.3]} 7... Bg4 {[%clk 0:03:01.3]} 8. h3
{[%clk 0:02:56.4]} 8... Bh5 {[%clk 0:03:00.5]} 9. O-O {[%clk 0:02:54.2]} 9... e6
{[%clk 0:02:59.7]} 10. Re1 {[%clk 0:02:46.6]} 10... Bd6 {[%clk 0:02:59.6]} 11.
Qe2 {[%clk 0:02:40.5]} 11... O-O {[%clk 0:02:59.1]} 12. Rad1 {[%clk 0:02:35.9]}
12... Nbd7 {[%clk 0:02:58.9]} 13. Bd3 {[%clk 0:02:29]} 13... Rfe8 {[%clk
0:02:58.2]} 14. Ne4 {[%clk 0:02:06.8]} 14... Nxe4 {[%clk 0:02:50.5]} 15. Qxe4
{[%clk 0:02:06.6]} 15... Bg6 {[%clk 0:02:47.4]} 16. Qe3 {[%clk 0:02:02]} 16...
e5 {[%clk 0:02:45.3]} 17. Bxg6 {[%clk 0:02:01.2]} 17... hxg6 {[%clk 0:02:41.1]}
18. dxe5 {[%clk 0:01:55.7]} 18... Nxe5 {[%clk 0:02:38.5]} 19. Nxe5 {[%clk
0:01:50.1]} 19... Bxe5 {[%clk 0:02:37.5]} 20. Qb3 {[%clk 0:01:48.1]} 20... Bh2+
{[%clk 0:02:34.9]} 21. Kh1 {[%clk 0:01:46.8]} 21... Be5 {[%clk 0:02:30.3]} 22.
Be3 {[%clk 0:01:42.4]} 22... Bf6 {[%clk 0:02:20.1]} 23. c3 {[%clk 0:01:39]}
23... Rad8 {[%clk 0:02:05]} 24. Bxa7 {[%clk 0:01:30.9]} 24... Rxd1 {[%clk
0:01:15.2]} 25. Rxd1 {[%clk 0:01:28.2]} 25... Re2 {[%clk 0:01:06]} 26. Be3
{[%clk 0:01:25.4]} 26... Qe7 {[%clk 0:00:45.4]} 27. Qb6 {[%clk 0:00:49]} 27...
Be5 {[%clk 0:00:40.2]} 28. Kg1 {[%clk 0:00:38.4]} 28... Bc7 {[%clk 0:00:39]} 29.
Qb3 {[%clk 0:00:19.8]} 29... Qe5 {[%clk 0:00:38]} 30. Kf1 {[%clk 0:00:17.1]}
30... Rxe3 {[%clk 0:00:30.4]} 31. fxe3 {[%clk 0:00:18]} 31... Qxe3 {[%clk
0:00:26.1]} 32. c4 {[%clk 0:00:18.2]} 32... Qf4+ {[%clk 0:00:22.9]} 33. Ke2
{[%clk 0:00:16.5]} 33... Qe4+ {[%clk 0:00:17.9]} 34. Qe3 {[%clk 0:00:15.9]}
34... Qc2+ {[%clk 0:00:16.8]} 35. Rd2 {[%clk 0:00:15.4]} 35... Qxc4+ {[%clk
0:00:16.8]} 36. Qd3 {[%clk 0:00:10.5]} 36... Qe6+ {[%clk 0:00:15.4]} 37. Kd1
{[%clk 0:00:10.1]} 37... Qxa2 {[%clk 0:00:12.8]} 38. Kc2 {[%clk 0:00:08.4]}
38... Qa4+ {[%clk 0:00:12.3]} 39. Kb1 {[%clk 0:00:06.6]} 39... Qb4 {[%clk
0:00:05.8]} 40. g4 {[%clk 0:00:03.2]} 40... Bf4 {[%clk 0:00:04.9]} 41. Re2
{[%clk 0:00:03]} 41... Qc5 {[%clk 0:00:03.5]} 42. Ka2 {[%clk 0:00:01]} 42...
Qa5+ {[%clk 0:00:02.3]} 43. Kb1 {[%clk 0:00:01.4]} 43... Qc5 {[%clk 0:00:01.8]}
44. Rc2 {[%clk 0:00:02]} 44... Qg1+ {[%clk 0:00:01.5]} 45. Ka2 {[%clk
0:00:02.6]} 45... Qa7+ {[%clk 0:00:01.3]} 46. Qa3 {[%clk 0:00:02.9]} 46... Qg1
{[%clk 0:00:01.8]} 47. Qb3 {[%clk 0:00:03.2]} 47... Qa7+ {[%clk 0:00:01.3]} 48.
Qa3 {[%clk 0:00:03.7]} 48... Qxa3+ {[%clk 0:00:01.6]} 49. Kxa3 {[%clk
0:00:04.3]} 49... Bd6+ {[%clk 0:00:01.6]} 50. Ka4 {[%clk 0:00:04.7]} 50... Kf8
{[%clk 0:00:01.8]} 51. Ka5 {[%clk 0:00:05.2]} 51... Ke7 {[%clk 0:00:01.9]} 52.
Kb6 {[%clk 0:00:05.5]} 1-0

[Event "Late-Titled-Tuesday-Blitz-January-30-2024"]
[Site "Chess.com"]
[Date "2024.01.30"]
[Round "1"]
[White "TheoSlade"]
[Black "Mahan_83"]
[Result "1/2-1/2"]
[WhiteElo "2466"]
[BlackElo "2777"]
[TimeControl "180+1"]
[EndTime "14:08:33 PST"]
[Termination "Game drawn by repetition"]

1. d4 {[%clk 0:03:00.9]} 1... Nf6 {[%clk 0:02:59.4]} 2. c4 {[%clk 0:03:01.1]}
2... e6 {[%clk 0:02:59.3]} 3. g3 {[%clk 0:03:01.3]} 3... d5 {[%clk 0:02:59.5]}
4. Bg2 {[%clk 0:03:01.7]} 4... Be7 {[%clk 0:02:59.4]} 5. Nf3 {[%clk 0:03:02.3]}
5... O-O {[%clk 0:02:58.8]} 6. O-O {[%clk 0:03:02.8]} 6... dxc4 {[%clk 0:02:59]}
7. Qc2 {[%clk 0:03:03.4]} 7... b5 {[%clk 0:02:59]} 8. a4 {[%clk 0:02:58.9]} 8...
b4 {[%clk 0:02:57.9]} 9. Qxc4 {[%clk 0:02:43.4]} 9... Bb7 {[%clk 0:02:56.8]} 10.
Bg5 {[%clk 0:02:36.4]} 10... Nbd7 {[%clk 0:02:55.5]} 11. Nbd2 {[%clk 0:02:35.1]}
11... h6 {[%clk 0:02:44.6]} 12. Bxf6 {[%clk 0:02:34.4]} 12... Nxf6 {[%clk
0:02:45.5]} 13. Rac1 {[%clk 0:02:33]} 13... Bd6 {[%clk 0:02:38]} 14. Nb3 {[%clk
0:02:16.8]} 14... a5 {[%clk 0:02:26.7]} 15. Nc5 {[%clk 0:02:16]} 15... Bd5
{[%clk 0:02:26.5]} 16. Qc2 {[%clk 0:02:13.7]} 16... Bxc5 {[%clk 0:02:21.1]} 17.
Qxc5 {[%clk 0:02:11.5]} 17... c6 {[%clk 0:02:09.6]} 18. Ne5 {[%clk 0:02:11.4]}
18... Rc8 {[%clk 0:02:02]} 19. Bxd5 {[%clk 0:01:54.9]} 19... cxd5 {[%clk
0:02:00.2]} 20. Nc6 {[%clk 0:01:52.5]} 20... Rxc6 {[%clk 0:01:49.4]} 21. Qxc6
{[%clk 0:01:53.4]} 21... Ne4 {[%clk 0:01:49.1]} 22. Qc7 {[%clk 0:01:50.4]} 22...
Qf6 {[%clk 0:01:46.6]} 23. e3 {[%clk 0:01:39.1]} 23... Nd2 {[%clk 0:01:38.2]}
24. Rfd1 {[%clk 0:01:39.1]} 24... Ne4 {[%clk 0:01:31.6]} 25. Qf4 {[%clk
0:01:25.2]} 25... Qe7 {[%clk 0:01:26.1]} 26. Rc7 {[%clk 0:01:24.9]} 26... Qd8
{[%clk 0:01:25.7]} 27. Rdc1 {[%clk 0:01:22]} 27... Ng5 {[%clk 0:01:20.2]} 28.
Kg2 {[%clk 0:01:19.1]} 28... Qe8 {[%clk 0:01:14.4]} 29. b3 {[%clk 0:01:12]}
29... Ne4 {[%clk 0:01:01.6]} 30. Rc8 {[%clk 0:01:10]} 30... Qxc8 {[%clk
0:01:01.2]} 31. Rxc8 {[%clk 0:01:10.9]} 31... Rxc8 {[%clk 0:01:01.7]} 32. f3
{[%clk 0:00:29.9]} 32... Rc2+ {[%clk 0:00:58.5]} 33. Kg1 {[%clk 0:00:27.5]}
33... Ng5 {[%clk 0:00:54.3]} 34. Qg4 {[%clk 0:00:14.6]} 34... f5 {[%clk
0:00:50.5]} 35. Qh5 {[%clk 0:00:14.9]} 35... Kh7 {[%clk 0:00:50.4]} 36. f4
{[%clk 0:00:12.3]} 36... g6 {[%clk 0:00:41.4]} 37. Qd1 {[%clk 0:00:12.3]} 37...
Nh3+ {[%clk 0:00:39.1]} 38. Kf1 {[%clk 0:00:12.9]} 38... Rxh2 {[%clk 0:00:35]}
39. Qd3 {[%clk 0:00:13.5]} 39... Nf2 {[%clk 0:00:23.2]} 40. Qb5 {[%clk
0:00:13.1]} 40... Ne4 {[%clk 0:00:21.3]} 41. Qd7+ {[%clk 0:00:12.9]} 41... Kh8
{[%clk 0:00:20.4]} 42. Qe8+ {[%clk 0:00:13.6]} 42... Kg7 {[%clk 0:00:20]} 43.
Qe7+ {[%clk 0:00:14]} 43... Kh8 {[%clk 0:00:19.2]} 44. Qxe6 {[%clk 0:00:13.5]}
44... Nxg3+ {[%clk 0:00:14.5]} 45. Kg1 {[%clk 0:00:14]} 45... Ra2 {[%clk
0:00:11.2]} 46. Qe5+ {[%clk 0:00:10.4]} 46... Kh7 {[%clk 0:00:10.6]} 47. Qc7+
{[%clk 0:00:10.4]} 47... Kh8 {[%clk 0:00:09.3]} 48. Qxa5 {[%clk 0:00:08.1]}
48... Ne2+ {[%clk 0:00:07.9]} 49. Kf1 {[%clk 0:00:07.9]} 49... Ng3+ {[%clk
0:00:07.9]} 50. Ke1 {[%clk 0:00:08.5]} 50... h5 {[%clk 0:00:08]} 51. Qd8+ {[%clk
0:00:07.5]} 51... Kh7 {[%clk 0:00:06.9]} 52. Qe7+ {[%clk 0:00:07.8]} 52... Kh8
{[%clk 0:00:04.2]} 53. Qf8+ {[%clk 0:00:07.9]} 53... Kh7 {[%clk 0:00:04.5]} 54.
Qf7+ {[%clk 0:00:08.4]} 54... Kh6 {[%clk 0:00:04.4]} 55. Qf8+ {[%clk 0:00:07.8]}
55... Kh7 {[%clk 0:00:04.6]} 56. Qf7+ {[%clk 0:00:07.5]} 56... Kh6 {[%clk
0:00:04.7]} 57. Qxd5 {[%clk 0:00:06.9]} 57... Ra1+ {[%clk 0:00:04.5]} 58. Kf2
{[%clk 0:00:05.7]} 58... Ne4+ {[%clk 0:00:05.4]} 59. Kg2 {[%clk 0:00:05.5]}
59... Ra2+ {[%clk 0:00:05.6]} 60. Kg1 {[%clk 0:00:04.3]} 60... Ra1+ {[%clk
0:00:05.7]} 61. Kg2 {[%clk 0:00:04.5]} 61... Ra2+ {[%clk 0:00:06.2]} 62. Kg1
{[%clk 0:00:05]} 62... Ra1+ {[%clk 0:00:06.3]} 63. Kg2 {[%clk 0:00:05.3]}
1/2-1/2

[Event "Late-Titled-Tuesday-Blitz-January-30-2024"]
[Site "Chess.com"]
[Date "2024.01.30"]
[Round "1"]
[White "CarlosjPineror"]
[Black "Narek_Ghimoyan"]
[Result "1-0"]
[WhiteElo "2684"]
[BlackElo "2385"]
[TimeControl "180+1"]
[EndTime "14:08:39 PST"]
[Termination "CarlosjPineror won by resignation"]

1. e4 {[%clk 0:02:59.5]} 1... e6 {[%clk 0:02:57.5]} 2. d3 {[%clk 0:02:58.3]}
2... d5 {[%clk 0:02:57.9]} 3. Nd2 {[%clk 0:02:58.9]} 3... Nf6 {[%clk 0:02:57.7]}
4. Ngf3 {[%clk 0:02:59.2]} 4... Be7 {[%clk 0:02:58.2]} 5. c3 {[%clk 0:02:59.2]}
5... O-O {[%clk 0:02:58.4]} 6. Qc2 {[%clk 0:02:57.7]} 6... c5 {[%clk 0:02:50.8]}
7. Be2 {[%clk 0:02:57.8]} 7... Nc6 {[%clk 0:02:51.4]} 8. O-O {[%clk 0:02:57.5]}
8... b6 {[%clk 0:02:52]} 9. Re1 {[%clk 0:02:53.7]} 9... Bb7 {[%clk 0:02:49.6]}
10. Nf1 {[%clk 0:02:52.7]} 10... Rc8 {[%clk 0:02:48.7]} 11. Ng3 {[%clk
0:02:52.4]} 11... Qc7 {[%clk 0:02:48.5]} 12. Bf1 {[%clk 0:02:50.9]} 12... Rfd8
{[%clk 0:02:46.6]} 13. e5 {[%clk 0:02:49.9]} 13... Nd7 {[%clk 0:02:45.8]} 14.
Bf4 {[%clk 0:02:50]} 14... Nf8 {[%clk 0:02:44.9]} 15. Qd2 {[%clk 0:02:42.4]}
15... Ng6 {[%clk 0:02:44.6]} 16. h4 {[%clk 0:02:43.1]} 16... d4 {[%clk
0:02:43.1]} 17. c4 {[%clk 0:02:42.1]} 17... Nb4 {[%clk 0:02:41.8]} 18. a3 {[%clk
0:02:41.6]} 18... Nxf4 {[%clk 0:02:40.8]} 19. axb4 {[%clk 0:02:38.5]} 19... Ng6
{[%clk 0:02:40.7]} 20. h5 {[%clk 0:02:32]} 20... Nf8 {[%clk 0:02:34.7]} 21. b5
{[%clk 0:02:29.1]} 21... Nd7 {[%clk 0:02:32.8]} 22. Rxa7 {[%clk 0:02:18.7]}
22... Qb8 {[%clk 0:02:31.4]} 23. Rxb7 {[%clk 0:02:00.7]} 23... Qxb7 {[%clk
0:02:31.5]} 24. h6 {[%clk 0:02:01.4]} 24... g6 {[%clk 0:02:30.8]} 25. Qf4 {[%clk
0:01:55.1]} 25... Qc7 {[%clk 0:02:29.4]} 26. Ne4 {[%clk 0:01:52.2]} 26... f6
{[%clk 0:02:19.9]} 27. g3 {[%clk 0:01:39.9]} 27... f5 {[%clk 0:02:02.9]} 28.
Neg5 {[%clk 0:01:38]} 28... Nf8 {[%clk 0:02:02.7]} 29. Bg2 {[%clk 0:01:30.6]}
29... Ra8 {[%clk 0:02:01.1]} 30. Nh4 {[%clk 0:01:06.9]} 30... Ra2 {[%clk
0:01:59.9]} 31. Bc6 {[%clk 0:01:04.7]} 31... Qb8 {[%clk 0:01:51.4]} 32. Nhf3
{[%clk 0:00:53.1]} 32... Qa7 {[%clk 0:01:50.5]} 33. Qc1 {[%clk 0:00:44.9]} 33...
Qa5 {[%clk 0:01:48.8]} 34. Kg2 {[%clk 0:00:41.4]} 34... Qb4 {[%clk 0:01:48.2]}
35. Re2 {[%clk 0:00:41.7]} 35... Qb3 {[%clk 0:01:46.9]} 36. Rd2 {[%clk
0:00:36.5]} 36... Rc8 {[%clk 0:01:45.5]} 37. Nxe6 {[%clk 0:00:30.6]} 37... Nxe6
{[%clk 0:01:45]} 38. Bd7 {[%clk 0:00:31]} 38... Rca8 {[%clk 0:01:41.7]} 39.
Bxe6+ {[%clk 0:00:31.5]} 39... Kf8 {[%clk 0:01:40.6]} 40. Bd5 {[%clk 0:00:30.8]}
40... Ra1 {[%clk 0:01:39.9]} 41. Qc2 {[%clk 0:00:31.1]} 41... Qxc2 {[%clk
0:01:39.9]} 42. Rxc2 {[%clk 0:00:32]} 42... Rd1 {[%clk 0:01:40]} 43. e6 {[%clk
0:00:31.7]} 43... Bf6 {[%clk 0:01:38.5]} 44. Re2 {[%clk 0:00:29.8]} 44... Ke7
{[%clk 0:01:38.1]} 45. Bxa8 {[%clk 0:00:25.9]} 45... Rxd3 {[%clk 0:01:37.3]} 46.
Bd5 {[%clk 0:00:25.4]} 46... Rd1 {[%clk 0:01:36.5]} 47. Rd2 {[%clk 0:00:22.9]}
47... Rb1 {[%clk 0:01:35]} 48. Ng1 {[%clk 0:00:18.1]} 48... g5 {[%clk
0:01:34.9]} 49. f4 {[%clk 0:00:17]} 49... g4 {[%clk 0:01:34.4]} 50. Ne2 {[%clk
0:00:17]} 50... Kd6 {[%clk 0:01:34.1]} 51. Kf2 {[%clk 0:00:14]} 51... Be7 {[%clk
0:01:34.2]} 52. Kg2 {[%clk 0:00:13.3]} 52... Bf8 {[%clk 0:01:34.6]} 53. Kf2
{[%clk 0:00:10.3]} 53... Bxh6 {[%clk 0:01:35]} 54. Rd3 {[%clk 0:00:08.6]} 54...
Rxb2 {[%clk 0:01:33.3]} 55. Ra3 {[%clk 0:00:09]} 55... Bf8 {[%clk 0:01:31.9]}
56. Ke1 {[%clk 0:00:08.8]} 56... Rb1+ {[%clk 0:01:30.9]} 57. Kd2 {[%clk
0:00:09.4]} 57... Rb2+ {[%clk 0:01:31.5]} 58. Kd3 {[%clk 0:00:10]} 58... Ke7
{[%clk 0:01:07.8]} 59. Ra7+ {[%clk 0:00:09.7]} 59... Ke8 {[%clk 0:01:08.4]} 60.
Bc6+ {[%clk 0:00:08.5]} 60... Kd8 {[%clk 0:01:08.9]} 61. Rd7+ {[%clk 0:00:08.5]}
61... Kc8 {[%clk 0:01:08.7]} 62. e7 {[%clk 0:00:09.2]} 62... Bxe7 {[%clk
0:01:08.6]} 63. Rxe7 {[%clk 0:00:10.1]} 63... Rb3+ {[%clk 0:01:09]} 64. Kc2
{[%clk 0:00:10.5]} 64... Ra3 {[%clk 0:01:06.5]} 65. Nc1 {[%clk 0:00:10.4]} 65...
Rc3+ {[%clk 0:01:06.2]} 66. Kd2 {[%clk 0:00:10.1]} 66... Rxg3 {[%clk 0:01:07.1]}
67. Nd3 {[%clk 0:00:10.8]} 67... Rh3 {[%clk 0:01:06]} 68. Ne5 {[%clk 0:00:11]}
68... Rh2+ {[%clk 0:01:06.5]} 69. Kd3 {[%clk 0:00:11]} 69... Rh3+ {[%clk
0:01:06.9]} 70. Ke2 {[%clk 0:00:11.7]} 70... Rh2+ {[%clk 0:01:07.3]} 71. Kf1
{[%clk 0:00:12.2]} 71... d3 {[%clk 0:01:05.5]} 72. Nxd3 {[%clk 0:00:11.9]} 72...
g3 {[%clk 0:01:05.9]} 73. Rg7 {[%clk 0:00:11.1]} 73... Rc2 {[%clk 0:01:01.4]}
74. Rxg3 {[%clk 0:00:10.6]} 74... Rxc4 {[%clk 0:01:02]} 75. Ne5 {[%clk
0:00:10.4]} 75... Rxf4+ {[%clk 0:01:02]} 76. Ke2 {[%clk 0:00:11]} 76... Rb4
{[%clk 0:01:00.5]} 77. Rg7 {[%clk 0:00:09.2]} 77... c4 {[%clk 0:00:59.6]} 78.
Nf7 {[%clk 0:00:09.1]} 78... Rb2+ {[%clk 0:00:58.5]} 79. Ke3 {[%clk 0:00:09.6]}
79... Rb3+ {[%clk 0:00:56.3]} 80. Kd4 {[%clk 0:00:08.9]} 80... c3 {[%clk
0:00:51]} 81. Nd6+ {[%clk 0:00:07.4]} 81... Kb8 {[%clk 0:00:51.7]} 82. Rb7+
{[%clk 0:00:07.3]} 82... Ka8 {[%clk 0:00:52.4]} 83. Nc8 {[%clk 0:00:07.9]} 83...
Rxb5 {[%clk 0:00:48.4]} 84. Ra7+ {[%clk 0:00:08]} 84... Kb8 {[%clk 0:00:48]} 85.
Bxb5 {[%clk 0:00:08.9]} 85... c2 {[%clk 0:00:47.8]} 86. Ra1 {[%clk 0:00:09.3]}
86... Kxc8 {[%clk 0:00:46.8]} 87. Rc1 {[%clk 0:00:10]} 87... Kc7 {[%clk
0:00:47.7]} 88. Rxc2+ {[%clk 0:00:10.9]} 1-0